bitfinex/quotes_ETHUSD_20250611
["timestamp","ask_amount","ask_price","bid_price","bid_amount"]
[1749671646672,10.33288779,2810.5,2809.8,0.7614]
[1749671646977,10.33288779,2810.5,2809.5,0.7894]
[1749671646978,12.77604558,2810.0,2809.5,0.7894]
[1749671647277,12.95364558,2810.0,2809.5,0.967]
[1749671647582,12.95364558,2810.0,2809.5,0.1776]
[1749671647735,12.77604558,2810.0,2809.2,0.8141]
[1749671647936,0.1776,2809.8,2809.3,0.1776]
[1749671650289,12.77604558,2809.4,2808.6,0.7686]
[1749671650443,12.77604558,2808.8,2808.2,0.29726608]
[1749671650642,12.77604558,2808.5,2808.2,0.29726608]
[1749671651438,0.17940564,2809.1,2808.2,0.29726608]
[1749671651439,0.823,2809.0,2808.2,0.29726608]
[1749671651777,10.0,2809.3,2808.3,0.8102]
[1749671651976,10.0,2809.3,2808.3,1.10745549]
[1749671652193,0.33245322,2809.2,2808.3,1.10745549]
[1749671652392,10.0,2809.3,2808.3,1.10745549]
[1749671653297,3.75,2809.2,2808.3,1.10745549]
[1749671653479,3.75,2809.2,2808.4,0.46683409]
[1749671653985,3.75,2809.2,2808.3,1.10745549]
[1749671654591,3.75,2809.2,2808.3,0.8102]
[1749671654996,0.7931,2809.8,2808.8,3.56017271]
[1749671655304,10.0,2809.9,2808.9,0.7656]
[1749671655969,3.75,2809.9,2808.9,0.7656]
[1749671656384,10.0,2809.8,2808.9,0.7656]
[1749671657207,10.02719933,2809.7,2808.9,0.7656]
[1749671657411,0.55,2809.6,2808.9,0.7656]
[1749671657704,3.75,2809.5,2808.9,0.7656]
[1749671658898,4.5693,2809.5,2808.9,0.7656]
[1749671659221,4.5693,2809.5,2808.8,1.012]
[1749671659222,14.59649933,2809.5,2808.8,1.012]
[1749671659510,10.33205436,2809.4,2808.8,1.012]
[1749671659727,10.02719933,2809.2,2808.6,0.7989]
[1749671659922,3.75,2809.1,2808.6,0.7989]
[1749671660086,3.75,2809.1,2808.2,0.7989]
[1749671660286,0.1776,2808.8,2808.3,0.1776]
[1749671662045,0.8193,2809.0,2808.2,0.7989]
[1749671662046,10.57719933,2808.9,2808.2,0.7989]
[1749671662256,0.1776,2808.5,2808.2,0.7989]
[1749671662637,3.75,2808.8,2808.2,0.7989]
[1749671662832,0.1776,2808.7,2808.2,1.15759]
[1749671663604,0.1776,2808.7,2808.2,0.9765]
[1749671663915,0.1776,2808.5,2808.1,1.012]
[1749671665735,0.1776,2808.5,2808.0,0.9848]
[1749671665941,0.1776,2808.5,2808.0,0.1776]
[1749671666103,0.1776,2808.3,2807.8,0.1776]
[1749671668642,3.75,2808.8,2807.7,0.7978]
[1749671668837,3.75,2808.8,2808.0,0.1776]
[1749671668838,0.1776,2808.5,2808.0,0.1776]
[1749671669238,0.36307517,2808.5,2808.0,0.1776]
[1749671669638,0.36307517,2808.5,2807.8,0.7978]
[1749671669639,0.1776,2808.3,2807.8,0.9754]
[1749671670275,10.20479933,2808.3,2807.8,0.1776]
[1749671670474,10.02719933,2808.0,2807.2,0.7828]
[1749671670681,0.1776,2807.8,2807.3,0.1776]
[1749671671434,0.1776,2807.8,2807.2,0.7828]
[1749671671435,10.02719933,2807.7,2806.9,1.7948]
[1749671671674,0.1776,2807.5,2807.0,0.1776]
[1749671675641,0.7738,2808.3,2807.2,3.56225241]
[1749671675836,0.7738,2808.3,2807.1,8.11873714]
[1749671677575,12.77983251,2807.9,2807.2,0.7568]
[1749671677739,10.0,2808.1,2807.2,0.7568]
[1749671677942,10.0,2808.1,2807.2,4.31900506]
[1749671678143,10.7753,2808.4,2807.3,0.43190051]
[1749671678441,10.7753,2808.4,2807.2,0.7568]
[1749671679836,14.5263,2808.4,2807.2,4.31901455]
[1749671680337,14.5263,2808.4,2806.6,3.751]
[1749671680338,0.7635,2807.8,2806.5,0.7681]
[1749671680578,10.0,2807.5,2806.6,0.29743554]
[1749671680752,3.751,2807.5,2806.6,0.29743554]
[1749671680947,10.80016849,2807.8,2806.8,0.7681]
[1749671680948,0.7635,2807.8,2806.8,0.7681]
[1749671681148,10.0,2807.9,2807.0,4.33058584]
[1749671681347,0.7635,2808.2,2807.1,0.7893235]
[1749671681560,1.00157517,2808.5,2807.5,0.7681]
[1749671682266,1.00157517,2808.5,2807.5,1.7801]
[1749671682491,0.18547517,2808.5,2807.5,5.34192097]
[1749671682778,0.18547517,2808.5,2807.5,1.7801]
[1749671683082,0.18547517,2808.5,2807.5,5.34195052]
[1749671683278,0.18547517,2808.5,2807.6,1.53419505]
[1749671683975,0.18547517,2808.5,2807.7,0.7971]
[1749671685464,0.36307517,2808.5,2808.0,0.1776]
[1749671688053,0.36307517,2808.5,2807.5,4.57386745]
[1749671688054,10.83286849,2808.4,2807.5,0.7577]
[1749671688244,0.7962,2808.4,2807.5,0.7577]
[1749671688441,10.7962,2808.4,2807.5,0.7577]
[1749671688645,0.36307517,2808.5,2807.5,0.7577]
[1749671689073,0.18547517,2808.5,2807.5,0.7577]
[1749671690384,0.7756,2809.1,2808.1,0.7634]
[1749671690784,0.18542099,2809.0,2808.1,0.7634]
[1749671691190,10.03666849,2809.8,2808.1,0.7634]
[1749671691191,0.7562,2809.3,2808.3,0.7859]
[1749671691384,0.94160444,2809.3,2808.3,0.7859]
[1749671691745,0.18540444,2809.3,2808.5,3.56055479]
[1749671692084,0.18540444,2809.3,2808.7,0.8083]
[1749671693810,0.8095,2809.8,2808.8,4.57213454]
[1749671694019,0.8095,2810.2,2808.9,0.7515]
[1749671694173,0.18536544,2810.2,2809.1,0.7782]
[1749671694509,0.18536544,2810.2,2809.6,0.7782]
[1749671694706,0.18536544,2810.2,2809.6,1.7902]
[1749671697735,0.18536544,2810.2,2809.6,5.34937]
[1749671698027,0.18536544,2810.2,2810.0,0.1776]
[1749671699209,0.33315717,2810.6,2810.1,0.1776]
[1749671699577,10.36982566,2810.6,2809.7,0.17902]
[1749671699782,0.1776,2810.4,2809.8,0.1776]
[1749671700011,10.81636849,2810.3,2809.8,0.1776]
[1749671700329,0.1776,2809.9,2809.0,3.749]
[1749671700542,0.7797,2810.5,2809.2,4.37345276]
[1749671700689,0.55,2810.2,2809.2,0.8138]
[1749671700890,10.8141,2810.3,2809.2,0.8138]
[1749671701322,10.85076849,2810.3,2809.2,0.8138]
[1749671701831,0.8141,2810.3,2809.2,0.8138]
[1749671702522,0.8141,2810.3,2809.5,3.55925731]
[1749671702841,0.8141,2810.3,2809.6,3.55915222]
[1749671702985,0.8141,2810.3,2809.7,0.7825]
[1749671703184,1.15225717,2810.6,2809.7,0.7825]
[1749671703427,10.03666849,2810.4,2809.4,0.8209]
[1749671703645,10.85576849,2810.1,2809.2,1.011]
[1749671703924,10.8191,2809.7,2808.7,1.011]
[1749671704126,0.8191,2809.7,2808.9,3.56011249]
[1749671704421,0.8153,2810.3,2809.0,0.7915]
[1749671704887,0.8153,2810.3,2809.1,3.55975205]
[1749671705087,0.8153,2810.3,2809.2,0.79112343]
[1749671705300,0.8153,2810.3,2809.2,4.3508169]
[1749671705602,0.8153,2810.3,2809.3,3.55954219]
[1749671705797,0.8153,2810.3,2809.3,3.55960336]
[1749671706004,0.8153,2810.3,2809.3,3.55950502]
[1749671706324,0.8153,2810.3,2809.4,0.43506285]
[1749671706822,0.8153,2810.3,2809.4,3.99450888]
[1749671707029,0.33315717,2810.6,2809.9,0.7784]
[1749671707230,0.33315717,2810.6,2810.5,3.55808574]
[1749671707418,1.4725,2811.3,2810.5,11.7894]
[1749671707727,5.15114702,2813.0,2810.5,11.7894]
[1749671707728,0.18526132,2811.9,2811.1,3.55723022]
[1749671707887,0.18526132,2811.9,2810.9,3.55757942]
[1749671707888,0.18526132,2811.9,2811.3,3.5569979]
[1749671708088,0.8139,2812.0,2811.3,1.019]
[1749671710508,0.8139,2812.0,2811.7,0.1776]
[1749671710915,10.0,2811.9,2810.6,3.20160685]
[1749671711141,0.1776,2811.8,2811.3,0.1776]
[1749671711450,10.03666849,2811.4,2810.8,0.1776]
[1749671711651,0.1776,2811.0,2810.6,0.1776]
[1749671711850,0.8231,2810.9,2810.6,0.1776]
[1749671712150,0.1776,2810.6,2810.1,0.1776]
[1749671712445,0.7574,2810.5,2810.0,1.019]
[1749671712645,0.1776,2810.4,2810.0,1.019]
[1749671714465,0.7574,2810.9,2810.0,1.019]
[1749671714674,0.7574,2810.9,2810.1,3.55859222]
[1749671714959,0.35730279,2811.0,2810.0,9.11215418]
[1749671715255,0.8035,2811.2,2810.0,9.11215418]
[1749671715549,0.8035,2812.0,2810.3,3.55833896]
[1749671715748,10.03666849,2811.9,2810.4,0.4108339]
[1749671715936,10.0,2811.8,2810.1,10.0]
[1749671716148,10.03666849,2811.9,2810.2,0.55]
[1749671716352,0.8035,2812.0,2810.6,10.0]
[1749671717152,0.8035,2811.4,2810.3,1.7905]
[1749671717487,0.8035,2811.4,2810.3,1.019]
[1749671718179,0.8035,2811.4,2810.3,4.57722512]
[1749671718548,0.8035,2811.4,2810.3,1.019]
[1749671718751,0.8035,2811.4,2810.5,13.55803276]
[1749671719146,0.8035,2811.4,2810.6,3.55794874]
[1749671719347,0.8035,2811.4,2810.7,1.35579487]
[1749671719570,0.8035,2811.4,2810.3,11.019]
[1749671719731,0.8035,2811.4,2810.4,0.29703337]
[1749671720862,0.8035,2811.4,2810.4,3.85522433]
[1749671721378,0.8035,2811.4,2810.4,0.29703337]
[1749671722082,0.8035,2811.4,2810.3,14.57727893]
[1749671722248,0.8035,2811.4,2810.4,1.45772789]
[1749671722792,0.8035,2811.4,2810.4,5.01593365]
[1749671723336,10.03666849,2811.3,2810.4,1.45772789]
[1749671723573,10.03666849,2811.3,2810.2,1.018]
[1749671723754,0.3310989,2811.2,2810.2,1.018]
[1749671724108,0.33110426,2811.2,2810.2,1.018]
[1749671724234,0.8035,2811.4,2810.2,1.018]
[1749671724582,0.8035,2811.4,2810.2,11.018]
[1749671724782,0.8035,2811.4,2811.0,0.1776]
[1749671725081,0.8035,2811.4,2810.9,0.1776]
[1749671725082,0.9811,2811.4,2810.9,0.1776]
[1749671725244,0.1776,2811.2,2810.7,0.1776]
[1749671725631,0.8035,2811.4,2810.3,1.018]
[1749671725864,0.1776,2811.3,2810.8,0.1776]
[1749671726040,0.1776,2811.3,2810.4,0.1776]
[1749671726041,0.1776,2810.9,2810.4,0.1776]
[1749671728787,0.7502,2810.8,2810.4,0.1776]
[1749671730996,0.7502,2810.8,2810.2,1.018]
[1749671731167,0.1776,2810.6,2810.2,1.018]
[1749671732298,0.7502,2810.8,2810.2,1.018]
[1749671732477,0.9278,2810.8,2810.3,0.1776]
[1749671733203,0.7502,2810.8,2810.6,0.1776]
[1749671733717,0.1776,2810.6,2810.1,0.1776]
[1749671734406,10.03666849,2811.0,2809.5,6.144]
[1749671734407,0.7663,2810.5,2809.5,6.144]
[1749671734577,0.1776,2810.4,2809.9,0.1776]
[1749671736717,0.7663,2810.5,2810.3,0.1776]
[1749671737092,1.0086,2810.8,2810.3,0.1776]
[1749671737291,0.831,2810.8,2810.3,0.1776]
[1749671737510,0.831,2810.8,2810.6,0.1776]
[1749671738429,0.831,2810.8,2809.4,10.47173134]
[1749671738430,0.831,2810.8,2809.8,1.024]
[1749671738993,0.831,2810.8,2809.8,4.58291063]
[1749671739590,0.831,2810.8,2809.8,1.024]
[1749671740305,10.0,2810.6,2809.8,1.024]
[1749671740630,0.8248,2810.5,2809.8,1.024]
[1749671740795,10.58666849,2810.4,2809.8,1.024]
[1749671740999,10.7947,2810.3,2809.8,1.024]
[1749671741198,0.8148,2810.2,2809.1,1.024]
[1749671743238,0.7849,2810.1,2809.1,1.024]
[1749671748072,10.0,2810.0,2809.1,1.024]
[1749671748368,0.1776,2809.8,2809.3,0.1776]
[1749671759668,0.7781,2809.5,2809.1,1.024]
[1749671759874,0.9557,2809.5,2809.1,1.024]
[1749671760170,13.71580223,2809.5,2809.1,1.024]
[1749671760365,0.9557,2809.5,2809.1,1.024]
[1749671761587,0.9557,2809.5,2809.0,0.1776]
[1749671762212,14.07075816,2809.5,2809.0,0.1776]
[1749671762512,11.352,2809.4,2809.0,0.1776]
[1749671762711,11.352,2809.4,2808.7,0.66666667]
[1749671762712,12.76010223,2809.2,2808.7,0.66666667]
[1749671763315,10.1776,2809.5,2808.7,4.22697065]
[1749671763316,0.1776,2809.5,2808.7,4.22697065]
[1749671763473,0.1776,2809.5,2808.8,0.50069707]
[1749671763667,10.802,2809.7,2808.8,0.50069707]
[1749671764268,14.552,2809.7,2808.8,0.50069707]
[1749671764607,14.91361542,2809.7,2808.7,0.66666667]
[1749671765501,12.76010223,2809.5,2808.7,0.66666667]
[1749671765699,12.76010223,2808.9,2808.7,0.66666667]
[1749671766326,11.68319973,2808.8,2808.7,0.66666667]
[1749671766530,12.19598021,2808.8,2808.7,0.66666667]
[1749671766828,12.52711577,2808.8,2808.7,0.66666667]
[1749671767124,12.19598021,2808.8,2808.7,0.66666667]
[1749671767419,12.52705924,2808.8,2808.7,0.66666667]
[1749671767649,12.19598021,2808.8,2808.7,0.66666667]
[1749671767850,12.19598021,2808.8,2807.4,1.025]
[1749671767851,0.55,2808.6,2807.4,1.025]
[1749671768013,12.76010223,2807.8,2807.4,1.025]
[1749671768209,3.753,2807.8,2807.4,1.025]
[1749671769152,3.753,2807.8,2807.0,0.78]
[1749671769546,0.802,2807.9,2807.1,0.43425752]
[1749671769744,3.751,2807.8,2807.0,0.78]
[1749671769940,3.751,2807.9,2807.0,4.34248538]
[1749671770147,3.751,2807.9,2807.0,0.78]
[1749671770514,10.0,2807.8,2807.0,0.78]
[1749671771019,10.0,2807.8,2805.1,3.746]
[1749671771020,10.0,2807.3,2806.5,0.7692]
[1749671771339,3.753,2807.2,2806.5,0.7692]
[1749671771716,3.756,2807.1,2806.5,0.7692]
[1749671771956,10.0,2807.3,2806.5,0.7692]
[1749671772121,3.757,2807.2,2806.5,0.7692]
[1749671772317,3.757,2807.2,2806.5,1.2024557]
[1749671772550,3.9346,2807.2,2806.7,0.1776]
[1749671772767,0.1776,2807.2,2806.7,0.1776]
[1749671772965,0.8054,2807.7,2806.8,4.33190945]
[1749671773141,0.1776,2807.7,2807.1,0.1776]
[1749671774159,0.36307894,2807.7,2807.1,0.1776]
[1749671776144,0.18547894,2807.7,2807.2,0.8255]
[1749671776396,0.18547894,2807.7,2807.5,0.1776]
[1749671776588,0.1776,2808.0,2807.5,0.1776]
[1749671776882,0.1776,2808.5,2807.8,3.56149192]
[1749671777082,0.1776,2808.5,2808.2,0.1776]
[1749671777482,0.18546263,2809.0,2807.9,3.56134761]
[1749671777712,0.18546263,2809.0,2807.8,0.7604]
[1749671777713,0.36306263,2809.0,2808.4,0.1776]
[1749671780502,0.36306263,2809.0,2808.6,0.1776]
[1749671783422,0.36306263,2809.0,2807.5,0.37396811]
[1749671783423,0.1776,2809.3,2808.7,0.7686]
[1749671783632,0.1776,2809.3,2808.9,0.1776]
[1749671784127,10.38628965,2809.4,2808.7,0.1776]
[1749671784327,10.03840419,2809.1,2808.2,0.7686]
[1749671784506,0.1776,2808.8,2808.3,0.1776]
[1749671785101,0.1776,2808.8,2808.2,0.7686]
[1749671785330,10.8113,2809.4,2808.7,0.1776]
[1749671785650,10.8113,2809.4,2808.0,11.013]
[1749671785651,0.33114576,2809.3,2808.9,0.1776]
[1749671785819,10.9889,2809.4,2808.9,0.1776]
[1749671785989,0.9889,2809.4,2808.9,0.1776]
[1749671788146,0.33113268,2809.3,2808.9,0.1776]
[1749671788341,0.9889,2809.4,2808.9,0.1776]
[1749671788843,0.1776,2809.4,2808.9,0.9879]
[1749671789044,0.1776,2809.4,2808.9,0.1776]
[1749671790409,0.1854087,2809.6,2808.6,0.8103]
[1749671790723,0.3630087,2809.6,2809.1,0.1776]
[1749671791049,10.0,2809.3,2808.6,0.8103]
[1749671791214,12.76741918,2809.1,2808.8,0.1776]
[1749671791408,13.57881918,2809.1,2808.7,0.1776]
[1749671791813,0.1776,2808.9,2808.4,0.1776]
[1749671792154,0.35723174,2809.2,2808.8,0.1776]
[1749671792310,0.1776,2809.3,2808.8,0.1776]
[1749671793939,0.1776,2809.3,2808.9,0.8103]
[1749671794340,0.1776,2809.3,2808.8,0.1776]
[1749671796309,12.76741918,2809.4,2809.3,0.8224]
[1749671796510,13.57801918,2809.4,2809.3,0.8224]
[1749671796815,0.8106,2809.4,2809.3,0.8224]
[1749671797351,0.5278272,2809.5,2809.3,0.8224]
[1749671797520,0.1776,2809.5,2809.3,0.8224]
[1749671800369,12.76741918,2809.4,2809.3,0.8224]
[1749671801469,16.51841918,2809.4,2809.3,0.8224]
[1749671802137,27.88821918,2809.4,2809.3,0.8224]
[1749671802347,28.73012153,2809.4,2809.3,0.8224]
[1749671802780,0.55,2809.1,2807.9,0.7532]
[1749671802979,0.9601,2808.3,2807.8,0.1776]
[1749671803183,0.7825,2808.3,2807.8,0.29730842]
[1749671803399,0.1776,2808.1,2807.8,0.29730842]
[1749671803594,3.751,2808.0,2807.8,0.29730842]
[1749671803796,0.7276,2807.9,2807.8,0.29730842]
[1749671803967,11.4843,2807.9,2807.8,0.29730842]
[1749671804512,11.81522909,2807.9,2807.8,0.29730842]
[1749671804677,11.4843,2807.9,2807.8,0.29730842]
[1749671804876,11.4843,2807.9,2807.1,0.1776]
[1749671804877,11.81522143,2807.9,2807.1,0.1776]
[1749671805105,0.1776,2807.5,2807.1,0.47498256]
[1749671805273,3.9286,2807.5,2807.1,0.47498256]
[1749671806070,0.7567,2807.9,2807.1,0.29738256]
[1749671806412,0.1776,2807.8,2807.4,0.1776]
[1749671808516,0.18553905,2808.0,2807.2,0.774]
[1749671808680,3.9286,2808.1,2807.7,0.1776]
[1749671810200,0.1776,2808.1,2807.7,0.1776]
[1749671811820,0.18549982,2808.2,2807.8,0.7542]
[1749671812007,1.0556691,2809.4,2807.8,0.7542]
[1749671812008,1.13854471,2808.9,2807.8,0.7542]
[1749671812177,0.1776,2808.8,2808.1,4.3153002]
[1749671812377,0.1776,2808.8,2808.4,0.1776]
[1749671812713,0.1854556,2809.0,2808.2,0.44929002]
[1749671812956,0.1854556,2809.0,2808.6,0.1776]
[1749671813238,0.55,2808.9,2808.6,0.1776]
[1749671813404,0.1776,2808.6,2808.1,0.9318]
[1749671813811,0.1854556,2809.0,2808.4,0.1776]
[1749671813996,0.1776,2808.9,2808.4,0.1776]
[1749671816995,0.1854556,2809.0,2808.1,0.7542]
[1749671817199,10.1776,2809.1,2808.6,0.1776]
[1749671817399,10.36302622,2809.1,2808.6,0.1776]
[1749671817840,10.72723364,2809.1,2808.6,0.1776]
[1749671820226,0.72723364,2809.1,2808.6,0.1776]
[1749671820428,0.36302622,2809.1,2808.7,1.7797]
[1749671820725,0.18538296,2810.0,2809.0,0.7588]
[1749671820931,10.0,2809.9,2809.0,0.7588]
[1749671821171,3.93638296,2810.0,2809.0,10.7588]
[1749671821172,0.18538296,2810.0,2809.0,10.7588]
[1749671821372,0.7961,2810.8,2809.5,0.7588]
[1749671821616,0.98143555,2810.8,2809.6,1.012]
[1749671821741,10.98143555,2810.8,2809.6,1.012]
[1749671822132,11.33746173,2810.8,2809.6,1.012]
[1749671822346,11.33746173,2810.8,2809.6,5.06973468]
[1749671822631,1.33746173,2810.8,2809.8,0.7588]
[1749671822827,0.18533555,2810.8,2809.8,10.79704379]
[1749671823031,0.7961,2811.1,2809.9,0.7588]
[1749671823257,11.15628794,2811.1,2810.0,1.012]
[1749671823427,0.55,2811.0,2810.0,1.012]
[1749671823633,14.5471,2811.1,2810.0,1.012]
[1749671823835,0.7961,2811.1,2810.4,3.55820268]
[1749671824038,0.7961,2811.1,2810.4,0.71166408]
[1749671824232,0.7961,2811.1,2810.3,0.7783]
[1749671825975,0.8005,2811.4,2810.4,3.55814131]
[1749671826144,0.8005,2811.4,2810.3,10.7783]
[1749671826484,0.8005,2811.4,2810.3,4.33657383]
[1749671826774,0.8005,2811.4,2810.4,4.34769966]
[1749671826934,0.8005,2811.4,2810.4,0.78950021]
[1749671827134,0.8005,2811.4,2810.4,4.34770189]
[1749671827682,0.8005,2811.4,2810.4,0.78950021]
[1749671829695,0.8005,2811.4,2810.5,1.012]
[1749671829890,0.8005,2811.4,2810.6,0.18015002]
[1749671830048,0.34915837,2811.6,2810.7,0.7617]
[1749671830249,1.014774,2811.7,2810.7,0.7617]
[1749671830487,1.192374,2811.7,2810.7,0.7617]
[1749671830648,1.192374,2811.7,2811.2,0.1776]
[1749671833445,1.52406377,2811.7,2811.2,0.1776]
[1749671833643,0.8295,2811.2,2810.3,1.7727]
[1749671833842,0.8295,2811.2,2810.3,1.011]
[1749671834088,0.1776,2810.9,2810.4,0.1776]
[1749671834261,0.1776,2811.1,2810.6,0.1776]
[1749671834447,0.8295,2811.2,2810.8,0.1776]
[1749671836290,0.8295,2811.2,2810.3,1.011]
[1749671836291,12.74528267,2811.1,2810.5,1.011]
[1749671836490,0.1776,2811.0,2810.5,1.1886]
[1749671837052,0.1776,2811.1,2810.6,0.1776]
[1749671837789,12.92288267,2811.1,2810.6,0.1776]
[1749671837990,12.92288267,2811.1,2810.3,0.827]
[1749671837991,0.1776,2810.8,2810.3,0.1776]
[1749671838695,0.7925,2810.7,2810.3,0.1776]
[1749671838894,12.74528267,2810.5,2809.8,1.011]
[1749671839081,0.1776,2810.3,2809.8,1.1886]
[1749671839658,0.7925,2810.2,2809.8,1.011]
[1749671839857,0.1776,2810.1,2809.8,1.011]
[1749671841159,12.74528267,2809.9,2809.1,1.7633]
[1749671841379,12.92288267,2809.9,2809.4,0.1776]
[1749671841954,13.27620476,2809.9,2809.4,0.1776]
[1749671842408,0.53092209,2809.9,2809.4,0.1776]
[1749671842956,10.7584,2809.8,2809.4,0.1776]
[1749671844485,0.7625,2809.4,2808.3,0.8238]
[1749671844715,0.7625,2809.4,2808.7,0.1776]
[1749671844716,12.74528267,2809.0,2808.7,0.1776]
[1749671845014,0.1776,2808.8,2808.3,0.1776]
[1749671845988,4.6944,2809.2,2808.7,0.1776]
[1749671846185,0.7688,2809.5,2808.5,4.33056269]
[1749671846396,0.7688,2809.5,2809.1,0.1776]
[1749671846597,0.95420817,2809.5,2809.1,0.1776]
[1749671848012,0.1776,2809.4,2808.9,0.1776]
[1749671848902,1.13180817,2809.5,2809.0,0.1776]
[1749671849404,10.95420817,2809.5,2808.5,1.782]
[1749671849604,10.95420817,2809.5,2808.7,0.1776]
[1749671849605,0.1776,2809.2,2808.7,0.1776]
[1749671851420,0.8222,2809.1,2808.7,0.1776]
[1749671851590,0.8222,2809.1,2808.2,0.8073]
[1749671851791,0.1776,2808.9,2808.4,0.1776]
[1749671855216,0.7733,2808.7,2807.9,0.816]
[1749671855435,0.1776,2808.5,2808.0,0.1776]
[1749671856182,0.55,2808.6,2807.6,0.7874]
[1749671856478,0.7628,2808.2,2807.3,0.7874]
[1749671856681,10.0,2808.0,2807.1,1.012]
[1749671856920,0.1776,2807.8,2807.3,0.1776]
[1749671858278,4.5118,2808.2,2807.2,3.56226845]
[1749671858482,0.1776,2808.1,2807.6,0.9631]
[1749671858693,0.1776,2808.4,2807.9,0.1776]
[1749671859213,0.54155843,2808.4,2807.9,0.1776]
[1749671859406,11.12110372,2808.4,2807.9,0.1776]
[1749671859716,0.1776,2808.1,2807.6,0.1776]
[1749671861684,4.11395843,2808.4,2807.4,3.56200705]
[1749671861884,10.1776,2808.3,2807.8,0.1776]
[1749671862924,0.1776,2808.8,2808.2,0.1776]
[1749671863085,0.1776,2809.0,2808.5,0.1776]
[1749671863286,0.1776,2809.0,2808.5,0.9359]
[1749671863788,0.1776,2809.0,2808.5,0.1776]
[1749671866729,1.1131757,2809.1,2808.7,0.1776]
[1749671867547,1.1131757,2809.1,2808.5,0.1776]
[1749671867753,0.1776,2808.8,2808.3,0.1776]
[1749671869132,10.0,2809.0,2808.2,1.012]
[1749671869310,10.1776,2809.0,2808.5,0.1776]
[1749671869645,10.7527,2808.9,2807.7,1.8047]
[1749671869845,0.1776,2808.4,2807.9,0.1776]
[1749671873510,10.0,2808.5,2807.7,1.012]
[1749671873709,12.94749078,2808.3,2807.8,0.1776]
[1749671873910,10.78,2808.2,2807.1,0.7846]
[1749671874160,0.1776,2808.0,2807.5,0.1776]
[1749671877268,0.1776,2808.0,2807.0,6.143]
[1749671877269,10.8102,2807.9,2807.0,6.143]
[1749671877474,0.1776,2807.8,2807.3,0.1776]
[1749671878539,10.1776,2807.8,2807.3,0.1776]
[1749671879545,0.1776,2807.8,2807.3,0.1776]
[1749671880330,0.8102,2807.9,2807.4,0.7854]
[1749671880531,0.8102,2807.9,2807.5,0.1776]
[1749671882253,0.8102,2807.9,2807.1,1.7884]
[1749671882254,13.58009078,2807.9,2807.1,0.7764]
[1749671882442,0.1776,2807.7,2807.2,0.1776]
[1749671884479,0.1776,2807.7,2806.9,1.012]
[1749671884480,12.76989078,2807.4,2806.5,0.8165]
[1749671884689,12.76989078,2807.4,2806.8,0.1776]
[1749671884690,0.1776,2807.3,2806.8,0.1776]
[1749671884990,12.76989078,2807.4,2806.4,0.1776]
[1749671884991,0.7792,2806.8,2806.4,0.1776]
[1749671885637,0.1776,2806.9,2806.4,0.1776]
[1749671885837,0.9321,2807.4,2806.7,0.1776]
[1749671886085,0.7545,2807.4,2806.6,12.76989078]
[1749671886245,0.1776,2807.7,2807.1,0.1776]
[1749671886445,0.8062,2807.8,2807.3,0.1776]
[1749671886801,0.8062,2807.8,2807.6,0.1776]
[1749671887780,0.8062,2807.8,2807.2,0.7995]
[1749671888080,0.1776,2807.9,2807.4,0.1776]
[1749671889452,10.7869,2808.1,2807.2,4.36176705]
[1749671889785,10.7869,2808.1,2807.6,0.1776]
[1749671889786,10.9645,2808.1,2807.6,0.1776]
[1749671891757,0.9645,2808.1,2807.6,0.1776]
[1749671892162,0.33070052,2808.4,2807.2,13.56939078]
[1749671892163,0.1776,2808.3,2807.8,0.1776]
[1749671892945,0.8307,2808.4,2807.7,0.8215]
[1749671893160,0.18547754,2808.6,2807.8,12.76989078]
[1749671893474,0.8307,2809.0,2808.2,0.8215]
[1749671893787,1.0083,2809.0,2808.5,0.1776]
[1749671896265,0.1776,2809.0,2808.5,0.1776]
[1749671896463,1.119926,2809.3,2808.8,0.1776]
[1749671897297,1.47637135,2809.3,2808.8,0.1776]
[1749671899098,1.119926,2809.3,2808.8,0.1776]
[1749671899881,12.76989078,2809.0,2808.8,0.1776]
[1749671900188,0.1776,2808.8,2807.9,0.8255]
[1749671900366,0.1776,2808.6,2808.1,0.1776]
[1749671900704,0.1776,2808.6,2807.9,0.8255]
[1749671900705,10.7513,2808.9,2807.9,0.8255]
[1749671900899,0.1776,2808.8,2808.3,0.1776]
[1749671901819,23.52119078,2808.9,2807.9,0.8255]
[1749671902015,0.1776,2808.5,2808.0,0.1776]
[1749671903102,0.7513,2808.9,2807.9,0.8255]
[1749671903400,1.31550693,2809.3,2808.4,0.8182]
[1749671903590,1.49310693,2809.3,2808.8,0.1776]
[1749671903992,1.136626,2809.3,2808.8,0.1776]
[1749671906766,0.363026,2809.3,2808.8,3.7377764]
[1749671907019,0.7748,2809.5,2808.5,2.38756908]
[1749671907020,0.7748,2809.5,2808.6,3.56042372]
[1749671907312,0.7748,2809.5,2809.2,0.1776]
[1749671907717,0.1776,2809.7,2809.2,0.1776]
[1749671908165,0.1853976,2809.8,2809.2,0.45697221]
[1749671908370,0.3629976,2809.8,2809.3,0.1776]
[1749671912183,13.56939078,2809.7,2809.3,0.1776]
[1749671912398,10.0,2809.6,2808.7,0.801]
[1749671912638,10.0,2809.6,2808.5,6.13456908]
[1749671912639,10.0,2809.6,2808.5,3.18856908]
[1749671912787,10.0,2809.6,2808.5,1.812]
[1749671913208,10.33078838,2809.6,2808.5,1.812]
[1749671913394,10.33078627,2809.6,2808.5,1.812]
[1749671913600,10.0,2809.6,2808.7,3.56030647]
[1749671913890,10.0,2809.6,2808.8,0.35317532]
[1749671914089,10.0,2809.6,2808.5,1.8494]
[1749671914292,10.0,2809.6,2808.5,4.39895466]
[1749671914519,10.0,2809.6,2808.6,1.011]